bitfinex/quotes_SOLUSD_20220103
["timestamp","ask_amount","ask_price","bid_price","bid_amount"]
[1641248412855,10.1824,169.7,169.62,2.0495]
[1641248413258,1.3398,169.7,169.62,10.8912]
[1641248413656,8.8417,169.71,169.62,10.8912]
[1641248414158,26.2677,169.72,169.62,10.8912]
[1641248414359,35.1089,169.72,169.63,32.5847]
[1641248414560,35.1089,169.72,169.63,32.8447]
[1641248414859,35.6089,169.72,169.59,27.05545786]
[1641248415057,35.8689,169.72,169.59,27.05545786]
[1641248415659,8.8445,169.66,169.59,27.05545786]
[1641248416059,9.1045,169.66,169.59,27.05545786]
[1641248416258,8.8445,169.66,169.59,27.31545786]
[1641248416656,8.8445,169.66,169.59,27.81545786]
[1641248417057,52.7489,169.7,169.59,27.81545786]
[1641248417258,8.8435,169.68,169.59,27.81545786]
[1641248418460,9.1035,169.68,169.59,27.81545786]
[1641248418658,8.8435,169.68,169.59,27.81545786]
[1641248418858,8.8435,169.68,169.59,36.65875786]
[1641248420263,1.3208,169.69,169.59,36.65875786]
[1641248420763,1.3208,169.69,169.61,8.8422]
[1641248420962,1.3208,169.69,169.61,9.6022]
[1641248421161,8.8424,169.7,169.61,9.6022]
[1641248421561,9.1024,169.7,169.61,9.6022]
[1641248421961,9.1024,169.7,169.61,0.76]
[1641248422162,9.1024,169.7,169.6,35.2114]
[1641248422763,31.8459,169.7,169.6,35.2114]
[1641248423363,1.2544,169.69,169.6,35.2114]
[1641248423565,8.8431,169.68,169.6,35.2114]
[1641248424467,8.8431,169.68,169.6,34.9514]
[1641248424962,9.1031,169.68,169.6,33.7028]
[1641248425965,9.1031,169.68,169.6,33.9628]
[1641248428770,9.1031,169.68,169.6,25.1198]
[1641248433075,9.1031,169.68,169.6,24.3598]
[1641248433275,9.1031,169.68,169.54,24.4855]
[1641248433475,23.1174,169.67,169.59,0.5]
[1641248433682,8.8442,169.66,169.59,0.5]
[1641248434078,9.1042,169.66,169.57,27.3729064]
[1641248434476,9.1042,169.66,169.57,27.8729064]
[1641248435475,9.1042,169.66,169.57,28.1329064]
[1641248435675,9.1042,169.66,169.58,8.844]
[1641248435876,9.1042,169.66,169.58,9.344]
[1641248436076,9.1042,169.66,169.58,9.604]
[1641248436277,8.8442,169.66,169.58,9.604]
[1641248436478,8.8433,169.68,169.58,9.604]
[1641248436680,1.3023,169.72,169.59,23.8907]
[1641248436878,1.254,169.71,169.59,27.16289368]
[1641248437079,1.254,169.71,169.59,27.42289368]
[1641248437508,1.254,169.71,169.6,30.89629368]
[1641248438006,1.254,169.71,169.61,1.42669368]
[1641248438206,1.254,169.71,169.65,8.8404]
[1641248438406,1.254,169.71,169.65,9.3404]
[1641248438608,1.254,169.71,169.65,9.6004]
[1641248439006,1.254,169.71,169.65,10.914]
[1641248441507,22.9491,169.73,169.65,10.914]
[1641248442209,74.6218,169.74,169.65,10.914]
[1641248442210,1.289,169.78,169.65,33.7537]
[1641248442508,1.289,169.78,169.65,35.18039368]
[1641248442509,34.046,169.78,169.65,35.18039368]
[1641248443713,34.546,169.78,169.65,35.18039368]
[1641248444313,10.6933,169.78,169.65,35.18039368]
[1641248444710,1.8549,169.78,169.65,35.18039368]
[1641248445320,0.5,169.78,169.65,35.18039368]
[1641248445720,94.2,169.81,169.65,35.18039368]
[1641248445922,94.2,169.81,169.65,107.69729368]
[1641248446122,93.7,169.81,169.65,107.69729368]
[1641248446825,1.3093,169.88,169.65,166.87729368]
[1641248447024,24.2397,169.88,169.65,117.43353546]
[1641248447225,24.2397,169.88,169.66,1.2517]
[1641248447429,33.5731,169.88,169.77,8.8337]
[1641248447926,33.5731,169.88,169.77,9.5937]
[1641248448325,33.8331,169.88,169.77,9.5937]
[1641248448824,33.8331,169.88,169.77,9.0937]
[1641248449028,33.8331,169.88,169.77,0.26]
[1641248449226,33.8331,169.88,169.76,28.92041239]
[1641248449530,33.8331,169.88,169.76,29.42041239]
[1641248450625,33.8331,169.88,169.76,28.92041239]
[1641248450825,33.8331,169.88,169.76,29.42041239]
[1641248451226,33.3331,169.88,169.76,28.92041239]
[1641248452329,33.0731,169.88,169.76,37.75461239]
[1641248452529,33.5731,169.88,169.76,38.25461239]
[1641248452929,33.5731,169.88,169.76,38.51461239]
[1641248453528,33.8331,169.88,169.76,38.51461239]
[1641248453728,33.5731,169.88,169.76,38.51461239]
[1641248456232,33.5731,169.88,169.76,38.25461239]
[1641248456833,33.5731,169.88,169.77,24.9924]
[1641248457036,33.5731,169.88,169.77,33.8259]
[1641248457240,33.5731,169.88,169.78,1.42669368]
[1641248457441,33.5731,169.88,169.78,1.92669368]
[1641248457633,33.5731,169.88,169.78,0.76]
[1641248458033,33.5731,169.88,169.77,27.0709]
[1641248458633,33.5731,169.88,169.78,8.8331]
[1641248458838,33.5731,169.88,169.78,9.3331]
[1641248459835,33.8331,169.88,169.78,9.3331]
[1641248460038,33.8331,169.88,169.78,8.8331]
[1641248460237,33.8331,169.88,169.77,26.3109]
[1641248460438,33.5731,169.88,169.77,26.5709]
[1641248461341,33.8331,169.88,169.77,26.3109]
[1641248461742,33.8331,169.88,169.77,35.6447]
[1641248462542,33.8331,169.88,169.77,35.9047]
[1641248462742,33.8331,169.88,169.77,35.6447]
[1641248464060,33.8331,169.88,169.77,35.9047]
[1641248464961,33.5731,169.88,169.77,35.9047]
[1641248465165,33.5731,169.88,169.77,37.33139368]
[1641248466568,33.8331,169.88,169.77,37.33139368]
[1641248467370,33.8331,169.88,169.77,26.8109]
[1641248467568,33.8331,169.88,169.77,0.5]
[1641248467870,33.8331,169.88,169.76,29.42041239]
[1641248468271,33.8331,169.88,169.76,32.20040607]
[1641248468469,33.8331,169.88,169.76,32.46040607]
[1641248469270,33.8331,169.88,169.77,33.0981]
[1641248469474,33.8331,169.88,169.77,33.8581]
[1641248469770,33.8331,169.88,169.78,1.42669368]
[1641248469972,33.8331,169.88,169.78,2.18669368]
[1641248470170,33.5731,169.88,169.78,2.18669368]
[1641248470373,33.5731,169.88,169.79,1.42669368]
[1641248470572,33.5731,169.88,169.79,1.68669368]
[1641248470773,33.5731,169.88,169.79,2.18669368]
[1641248470973,9.3334,169.88,169.79,1.68669368]
[1641248471779,9.5934,169.88,169.79,2.18669368]
[1641248471977,9.5934,169.88,169.79,1.68669368]
[1641248472372,9.5934,169.88,169.79,2.18669368]
[1641248472979,9.5934,169.88,169.79,23.4442]
[1641248473376,9.5934,169.88,169.79,23.9442]
[1641248473777,9.5934,169.88,169.79,23.4442]
[1641248475778,9.5934,169.88,169.79,23.1842]
[1641248476583,9.5934,169.88,169.77,1.2976]
[1641248476982,9.5934,169.88,169.72,1.42669368]
[1641248477383,9.5934,169.88,169.75,8.8352]
[1641248477581,9.5934,169.88,169.72,1.42669368]
[1641248477582,25.1063,169.87,169.72,1.42669368]
[1641248477782,8.8366,169.81,169.71,24.6876]
[1641248478084,9.0966,169.81,169.72,25.27850816]
[1641248478684,8.8366,169.81,169.72,25.27850816]
[1641248479083,8.8366,169.81,169.72,26.70520184]
[1641248479282,9.0966,169.81,169.72,26.70520184]
[1641248479683,8.8366,169.81,169.72,35.54210184]
[1641248479885,8.8366,169.81,169.72,36.30210184]
[1641248482688,8.8359,169.82,169.72,36.30210184]
[1641248482987,8.8359,169.82,169.73,23.3459]
[1641248483190,8.8359,169.82,169.73,32.1818]
[1641248483387,8.8359,169.82,169.73,34.1906]
[1641248483986,8.8359,169.82,169.73,35.61729368]
[1641248484388,8.8354,169.83,169.73,35.61729368]
[1641248484590,9.0954,169.83,169.73,34.1906]
[1641248485089,9.0954,169.83,169.73,0.5]
[1641248485290,9.0954,169.83,169.72,25.27850816]
[1641248485291,23.4041,169.82,169.72,34.11540816]
[1641248485488,23.4041,169.82,169.72,34.87540816]
[1641248485489,10.1883,169.81,169.72,34.87540816]
[1641248487291,10.1883,169.81,169.72,34.61540816]
[1641248487494,10.4483,169.81,169.72,25.77850816]
[1641248487695,10.4483,169.81,169.72,25.27850816]
[1641248488092,10.9483,169.81,169.72,25.27850816]
[1641248488995,10.9483,169.81,169.72,25.77850816]
[1641248491223,10.9483,169.81,169.68,8.8383]
[1641248491522,33.9306,169.81,169.66,8.8396]
[1641248491724,33.9306,169.81,169.65,0.5]
[1641248491923,35.2178,169.81,169.65,0.5]
[1641248492122,35.2178,169.81,169.62,1.42669368]
[1641248492323,36.64449368,169.81,169.63,31.64998095]
[1641248492523,36.64449368,169.81,169.62,1.92669368]
[1641248492724,44.13849368,169.81,169.62,0.5]
[1641248492927,44.13849368,169.81,169.6,10.1185]
[1641248493323,44.13849368,169.81,169.6,8.8424]
[1641248493527,44.13849368,169.81,169.61,28.63771323]
[1641248493824,103.31849368,169.81,169.61,28.63771323]
[1641248494525,44.13849368,169.81,169.61,28.89771323]
[1641248494725,36.64449368,169.81,169.61,28.89771323]
[1641248495324,36.64449368,169.81,169.61,28.63771323]
[1641248496925,59.18,169.8,169.61,28.63771323]
[1641248497126,83.663,169.79,169.61,28.63771323]
[1641248497326,8.8443,169.7,169.61,28.63771323]
[1641248497625,9.1043,169.7,169.61,28.63771323]
[1641248497832,9.6043,169.7,169.61,28.63771323]
[1641248498426,9.6043,169.7,169.58,25.83519368]
[1641248498631,9.6043,169.7,169.58,26.59519368]
[1641248499228,9.6043,169.7,169.59,23.84832561]
[1641248499429,9.6043,169.7,169.59,24.34832561]
[1641248499631,9.6043,169.7,169.59,24.60832561]
[1641248500734,9.6043,169.7,169.59,26.03501929]
[1641248501334,9.6043,169.7,169.59,24.60832561]
[1641248503136,9.6043,169.7,169.59,24.34832561]
[1641248504433,9.1043,169.7,169.59,25.77501929]
[1641248504637,9.6043,169.7,169.6,24.2821]
[1641248505042,9.6043,169.7,169.6,25.529]
[1641248505248,9.1043,169.7,169.6,27.21569368]
[1641248505447,8.8443,169.7,169.6,27.21569368]
[1641248505647,0.5,169.7,169.6,27.71569368]
[1641248505844,9.3422,169.72,169.6,27.71569368]
[1641248506648,9.3422,169.72,169.6,36.55809368]
[1641248508448,8.8422,169.72,169.6,36.55809368]
[1641248508674,0.5,169.72,169.6,36.55809368]
[1641248508853,74.9941,169.76,169.6,46.40266879]
[1641248509050,74.9941,169.76,169.6,55.99832784]
[1641248509650,73.6522,169.76,169.6,55.99832784]
[1641248509851,33.4256,169.8,169.6,55.99832784]
[1641248510051,33.4256,169.8,169.7,8.8372]
[1641248510250,33.4256,169.8,169.71,31.38508854]
[1641248510451,8.838,169.8,169.71,32.14508854]
[1641248510852,85.6476,169.82,169.71,32.14508854]
[1641248511052,76.8107,169.82,169.72,2.72459368]
[1641248511252,1.3091,169.84,169.74,8.8353]
[1641248511455,1.35,169.85,169.74,8.8353]
[1641248511456,1.35,169.85,169.74,9.3353]
[1641248511659,1.85,169.85,169.74,9.5953]
[1641248511854,1.35,169.85,169.74,11.02199368]
[1641248512054,72.1094,169.86,169.74,11.02199368]
[1641248512256,0.5,169.85,169.74,11.02199368]
[1641248512654,8.8359,169.84,169.74,11.02199368]
[1641248512954,9.0959,169.84,169.74,11.02199368]
[1641248513455,9.5959,169.84,169.74,11.02199368]
[1641248513655,9.5959,169.84,169.74,2.18669368]
[1641248514856,9.3359,169.84,169.74,2.18669368]
[1641248515065,9.3359,169.84,169.74,11.02199368]
[1641248515258,8.8359,169.84,169.74,11.02199368]
[1641248517982,9.3359,169.84,169.74,11.02199368]
[1641248518182,9.3359,169.84,169.74,10.76199368]
[1641248518384,9.5959,169.84,169.74,0.5]
[1641248518785,9.5959,169.84,169.72,34.567]
[1641248519585,9.5959,169.84,169.72,34.827]
[1641248520485,9.5959,169.84,169.72,34.567]
[1641248521289,9.5959,169.84,169.72,25.7309]
[1641248521988,9.5959,169.84,169.71,31.38508854]
[1641248523203,9.5959,169.84,169.64,1.42669368]
[1641248523393,25.55289368,169.83,169.64,3.26269368]
[1641248523591,8.8413,169.74,169.64,3.26269368]
[1641248524090,9.1013,169.74,169.64,3.52269368]
[1641248524293,9.1013,169.74,169.65,24.75244715]
[1641248524692,9.1013,169.74,169.65,25.25244715]
[1641248526897,9.1013,169.74,169.65,24.75244715]
[1641248527094,9.6013,169.74,169.63,23.3738]
[1641248527296,9.6013,169.74,169.61,1.297]
[1641248527495,9.6013,169.74,169.61,2.057]
[1641248528097,10.8602,169.74,169.62,28.62085614]
[1641248528298,10.8602,169.74,169.62,37.46255614]
[1641248528499,10.8602,169.74,169.62,38.22255614]
[1641248529504,10.8602,169.74,169.62,37.96255614]
[1641248529698,10.8602,169.74,169.62,29.12085614]
[1641248530501,10.8602,169.74,169.62,28.62085614]
[1641248531803,10.3602,169.74,169.62,28.62085614]
[1641248532003,10.3602,169.74,169.62,28.88085614]
[1641248532202,10.3602,169.74,169.62,29.38085614]
[1641248533102,10.3602,169.74,169.62,39.64934982]
[1641248533304,8.8413,169.74,169.62,39.64934982]
[1641248533504,8.3413,169.74,169.62,39.64934982]
[1641248535306,8.3413,169.74,169.63,1.2959]
[1641248535505,8.3413,169.74,169.64,8.8409]
[1641248535910,8.3413,169.74,169.64,9.6009]
[1641248537110,8.6013,169.74,169.64,9.6009]
[1641248537510,9.1013,169.74,169.64,0.76]
[1641248537707,9.1013,169.74,169.63,26.8838]
[1641248538611,9.1013,169.74,169.63,1.7959]
[1641248538810,9.1013,169.74,169.62,28.62085614]
[1641248539611,9.1013,169.74,169.59,22.5014]
[1641248539809,52.7002,169.73,169.6,0.5]
[1641248540010,1.3319,169.72,169.6,0.5]
[1641248540211,1.3319,169.72,169.59,22.5014]
[1641248540410,2.0919,169.72,169.59,23.0014]
[1641248540611,2.0919,169.72,169.59,24.3101]
[1641248540812,8.8444,169.67,169.59,24.3101]
[1641248541012,0.26,169.67,169.59,24.3101]
[1641248541213,0.26,169.67,169.59,23.8101]
[1641248541813,26.3948,169.7,169.59,24.0701]
[1641248542636,8.8446,169.66,169.59,24.0701]
[1641248543038,9.1046,169.66,169.59,24.0701]
[1641248543438,81.0894,169.7,169.59,24.0701]
[1641248543738,0.26,169.66,169.59,24.0701]
[1641248544338,81.3494,169.7,169.59,24.0701]
[1641248544537,8.8439,169.67,169.6,1.42669368]
[1641248544937,9.1039,169.67,169.6,1.92669368]
[1641248545138,103.6288,169.7,169.6,2.18669368]
[1641248545338,103.8888,169.7,169.6,2.18669368]
[1641248546739,8.8432,169.69,169.6,11.02979368]
[1641248547139,9.1032,169.69,169.6,11.02979368]
[1641248547740,9.1032,169.69,169.6,10.76979368]
[1641248548441,9.1032,169.69,169.6,1.92669368]
[1641248549042,9.1032,169.69,169.6,0.5]
[1641248549342,9.1032,169.69,169.59,23.8101]
[1641248550744,8.8432,169.69,169.59,23.8101]
[1641248551348,8.8432,169.69,169.59,1.8087]
[1641248551745,8.8432,169.69,169.59,23.2707]
[1641248551946,9.1032,169.69,169.59,23.2707]
[1641248552350,9.1032,169.69,169.59,24.69739368]
[1641248552552,9.1032,169.69,169.59,24.95739368]
[1641248552747,9.1032,169.69,169.59,33.80119368]
[1641248552950,9.1032,169.69,169.59,32.1145]
[1641248554752,9.1032,169.69,169.59,9.3438]
[1641248555352,9.1032,169.69,169.6,1.42669368]
[1641248555752,9.1032,169.69,169.6,1.92669368]
[1641248555953,9.6032,169.69,169.6,0.5]
[1641248556252,9.1032,169.69,169.61,1.42669368]
[1641248557353,9.1032,169.69,169.61,1.92669368]
[1641248558152,8.8432,169.69,169.62,1.42669368]
[1641248558353,40.96225346,169.84,169.62,1.92669368]
[1641248558553,1.2331,169.74,169.62,3.43299368]
[1641248558852,1.2331,169.74,169.63,1.42669368]
[1641248559052,0.01872229,169.74,169.63,1.68669368]
[1641248559252,0.01872229,169.74,169.63,2.18669368]
[1641248559452,0.01872229,169.74,169.66,24.89980577]
[1641248559652,22.9267,169.75,169.66,24.89980577]
[1641248559853,22.9267,169.75,169.67,1.42669368]
[1641248560056,23.1867,169.75,169.67,1.42669368]
[1641248560255,0.26,169.75,169.67,1.92669368]
[1641248560458,2.0911,169.77,169.67,1.92669368]
[1641248560655,8.8405,169.74,169.68,1.42669368]
[1641248560860,8.8405,169.74,169.68,1.92669368]
[1641248561156,0.26,169.74,169.68,1.92669368]
[1641248561556,2.0911,169.77,169.68,1.92669368]
[1641248561958,0.5,169.77,169.68,1.92669368]
[1641248562156,8.8394,169.76,169.68,10.76589368]
[1641248562358,9.3394,169.76,169.68,11.02589368]
[1641248562560,9.3394,169.76,169.69,1.42669368]
[1641248562758,0.5,169.76,169.69,1.42669368]
[1641248562957,0.5,169.76,169.69,1.92669368]
[1641248563157,24.8955,169.78,169.69,1.92669368]
[1641248563361,33.9943,169.78,169.69,1.92669368]
[1641248563762,33.9943,169.78,169.69,0.5]
[1641248563958,33.9943,169.78,169.67,1.752]
[1641248564160,33.9943,169.78,169.67,0.5]
[1641248564359,33.9943,169.78,169.66,26.82649945]
[1641248564560,33.9943,169.78,169.66,27.08649945]
[1641248565561,35.2908,169.78,169.67,24.8936]
[1641248565964,35.2908,169.78,169.67,25.3936]
[1641248566373,35.2908,169.78,169.67,26.82029368]
[1641248566765,35.2908,169.78,169.67,26.32029368]
[1641248567465,35.2908,169.78,169.67,26.82029368]
[1641248567668,35.2908,169.78,169.67,35.65999368]
[1641248568267,35.2908,169.78,169.67,26.82029368]
[1641248568469,34.7908,169.78,169.67,26.82029368]
[1641248569594,34.7908,169.78,169.67,35.66009368]
[1641248569995,35.2908,169.78,169.67,35.66009368]
[1641248571396,35.2908,169.78,169.67,26.82029368]
[1641248573396,35.2908,169.78,169.67,35.65999368]
[1641248575199,10.8953,169.78,169.67,35.65999368]
[1641248576201,10.1353,169.78,169.67,35.65999368]
[1641248576400,10.1353,169.78,169.67,35.91999368]
[1641248576604,8.838,169.79,169.67,35.91999368]
[1641248577204,24.9775,169.8,169.67,35.91999368]
[1641248577605,25.2375,169.8,169.67,35.91999368]
[1641248578606,34.0752,169.8,169.67,35.91999368]
[1641248582412,8.839,169.78,169.67,35.91999368]
[1641248582812,9.099,169.78,169.67,35.91999368]
[1641248583516,9.099,169.78,169.67,35.65999368]
[1641248583715,9.099,169.78,169.67,26.82029368]
[1641248583914,9.599,169.78,169.67,24.0662]
[1641248584117,9.599,169.78,169.67,0.5]
[1641248584317,23.5449,169.77,169.64,1.92669368]
[1641248584522,8.8419,169.72,169.64,1.42669368]
[1641248584717,80.6056,169.76,169.64,35.95099963]
[1641248584917,0.26,169.72,169.64,35.95099963]
[1641248585517,81.3656,169.76,169.64,35.95099963]
[1641248585716,8.8415,169.73,169.64,35.95099963]
[1641248586123,9.1015,169.73,169.64,35.95099963]
[1641248587818,8.8408,169.74,169.64,35.95099963]
[1641248588019,8.8408,169.74,169.64,36.21099963]
[1641248588521,24.9709,169.75,169.64,36.21099963]
[1641248588726,24.9709,169.75,169.64,35.95099963]
[1641248589419,24.9709,169.75,169.64,36.21099963]
[1641248589622,33.8113,169.75,169.64,36.21099963]
[1641248589820,34.0713,169.75,169.64,36.21099963]
[1641248595949,25.2309,169.75,169.65,24.669]
[1641248596152,25.2309,169.75,169.66,8.8403]
[1641248596350,25.2309,169.75,169.66,12.12109368]
[1641248596552,25.2309,169.75,169.67,1.42669368]
[1641248596954,0.26,169.75,169.67,1.92669368]
[1641248597159,0.26,169.75,169.67,0.5]
[1641248597353,89.7059,169.76,169.66,10.6944]
[1641248599956,89.7059,169.76,169.66,12.12109368]
[1641248600959,90.2059,169.76,169.66,12.12109368]
[1641248601159,89.7059,169.76,169.66,12.12109368]
[1641248601361,89.7059,169.76,169.66,10.6944]
[1641248601560,89.7059,169.76,169.67,1.42669368]
[1641248601963,89.7059,169.76,169.67,1.92669368]
[1641248602261,89.7059,169.76,169.68,1.42669368]
[1641248605665,89.7059,169.76,169.67,0.5]
[1641248605864,89.7059,169.76,169.66,9.3403]
[1641248606868,89.7059,169.76,169.66,8.8403]
[1641248609472,90.2059,169.76,169.66,8.8403]
[1641248609672,89.7059,169.76,169.66,8.8403]
[1641248609872,90.2059,169.76,169.66,8.8403]
[1641248610571,89.7059,169.76,169.66,8.8403]
[1641248610974,90.2059,169.76,169.66,8.8403]
[1641248616477,90.2059,169.76,169.67,1.42669368]
[1641248616876,90.2059,169.76,169.67,1.92669368]
[1641248617379,90.2059,169.76,169.68,1.42669368]
[1641248618380,90.2059,169.76,169.68,1.92669368]
[1641248618680,90.2059,169.76,169.68,1.42669368]
[1641248620681,89.2059,169.76,169.68,1.42669368]
[1641248620883,89.2059,169.76,169.68,1.92669368]
[1641248621082,89.2059,169.76,169.68,1.42669368]
[1641248621485,88.9661,169.76,169.68,1.42669368]
[1641248621885,88.9661,169.76,169.68,1.92669368]
[1641248622085,88.9661,169.76,169.68,1.42669368]
[1641248622683,88.2061,169.76,169.68,1.92669368]
[1641248622885,79.3658,169.76,169.68,1.92669368]
[1641248623087,79.8658,169.76,169.68,1.92669368]
[1641248623489,79.8658,169.76,169.69,1.42669368]
[1641248623883,79.8658,169.76,169.69,1.92669368]
[1641248624084,80.1258,169.76,169.69,1.92669368]
[1641248625684,80.1258,169.76,169.69,3.25279368]
[1641248625885,0.76,169.76,169.69,3.25279368]
[1641248626086,0.5,169.76,169.69,3.25279368]
[1641248626287,9.5991,169.78,169.69,3.25279368]
[1641248627289,9.5991,169.78,169.7,1.42669368]
[1641248627892,9.5991,169.78,169.7,1.92669368]
[1641248628289,9.5991,169.78,169.7,1.42669368]
[1641248628490,9.5991,169.78,169.7,1.92669368]
[1641248630721,9.3391,169.78,169.71,28.25308482]
[1641248630922,33.1746,169.8,169.71,28.75308482]
[1641248631123,33.1746,169.8,169.71,28.25308482]
[1641248631324,33.6746,169.8,169.71,29.01308482]
[1641248631523,24.8361,169.8,169.71,29.01308482]
[1641248631722,77.3129,169.83,169.72,1.2596]
[1641248631926,77.3129,169.83,169.72,35.2718]
[1641248632224,77.3129,169.83,169.73,1.42669368]
[1641248632424,77.3129,169.83,169.73,1.92669368]
[1641248632625,77.3129,169.83,169.73,2.18669368]
[1641248632832,77.3129,169.83,169.74,1.42669368]
[1641248633027,77.5729,169.83,169.74,1.42669368]
[1641248633228,77.5729,169.83,169.74,1.92669368]
[1641248633426,77.5729,169.83,169.75,1.2487]
[1641248633826,77.5729,169.83,169.75,1.7487]
[1641248634126,77.5729,169.83,169.75,3.17539368]
[1641248635427,77.5729,169.83,169.75,3.43539368]
[1641248635627,77.5729,169.83,169.75,12.27129368]
[1641248635927,77.5729,169.83,169.75,10.8446]
[1641248636128,77.5729,169.83,169.75,12.27129368]
[1641248636932,77.5729,169.83,169.75,10.8446]
[1641248638031,77.5729,169.83,169.75,12.27129368]
[1641248638832,77.5729,169.83,169.75,10.8446]
[1641248640638,0.26,169.83,169.75,10.8446]
[1641248640937,0.26,169.83,169.76,24.9977]
[1641248641136,10.9381,169.85,169.76,24.9977]
[1641248641337,10.9381,169.85,169.76,25.7577]
[1641248641939,10.9381,169.85,169.78,26.87914363]
[1641248642339,10.4381,169.85,169.78,27.37914363]
[1641248642538,0.26,169.85,169.78,27.37914363]
[1641248642739,1.349,169.88,169.78,28.80583731]
[1641248642942,1.349,169.88,169.78,29.06583731]
[1641248643139,98.696,169.89,169.78,29.06583731]
[1641248643340,22.5207,169.93,169.78,29.06583731]
[1641248643546,22.5207,169.93,169.79,22.8158]
[1641248643743,105.36731016,169.95,169.79,22.8158]
[1641248643941,105.36731016,169.95,169.8,2.70369368]
[1641248644141,102.0311,169.95,169.8,2.70369368]
[1641248644345,102.0311,169.95,169.81,1.42669368]
[1641248644542,102.0311,169.95,169.84,8.8306]
[1641248644741,110.8617,169.95,169.81,24.88519368]
[1641248644941,86.4067,169.95,169.85,1.42669368]
[1641248645143,86.4067,169.95,169.86,23.99454483]
[1641248645642,77.5761,169.95,169.86,32.82444483]
[1641248645841,78.0761,169.95,169.86,33.32444483]
[1641248646041,0.5,169.95,169.86,33.32444483]
[1641248646251,0.5,169.95,169.86,33.58444483]
[1641248646441,9.3299,169.97,169.86,33.58444483]
[1641248646642,9.3299,169.97,169.86,33.08444483]
[1641248646845,9.3299,169.97,169.86,23.99454483]
[1641248647770,9.5899,169.97,169.86,23.99454483]
[1641248650271,32.8231,169.97,169.86,23.99454483]
[1641248654575,32.5631,169.97,169.86,23.99454483]
[1641248655975,32.8231,169.97,169.86,23.99454483]
[1641248656377,8.8299,169.97,169.86,23.99454483]
[1641248656575,8.8299,169.97,169.86,25.68123851]
[1641248656976,88.18441696,169.98,169.87,33.0349]
[1641248657375,88.18441696,169.98,169.87,33.7949]
[1641248657875,12.91911696,169.98,169.87,35.22159368]
[1641248658277,3.83001696,169.98,169.88,10.0945]
[1641248658475,3.83001696,169.98,169.88,10.3545]
[1641248658678,3.83001696,169.98,169.89,1.42669368]
[1641248658877,3.83001696,169.98,169.89,1.92669368]
[1641248659074,3.83001696,169.98,169.89,2.18669368]
[1641248659275,3.83001696,169.98,169.9,1.42669368]
[1641248659475,3.83001696,169.98,169.9,1.68669368]
[1641248659676,3.83001696,169.98,169.9,2.18669368]
[1641248660475,3.33001696,169.98,169.9,2.18669368]
[1641248660679,3.33001696,169.98,169.92,8.8264]
[1641248660879,3.33001696,169.98,169.9,2.18669368]
[1641248661076,3.33001696,169.98,169.9,0.76]
[1641248661478,3.59001696,169.98,169.9,0.5]
[1641248661679,3.59001696,169.98,169.89,8.8279]
[1641248661880,3.59001696,169.98,169.89,0.5]
[1641248662079,3.59001696,169.98,169.89,0.26]
[1641248662480,3.59001696,169.98,169.88,3.45259368]
[1641248663679,12.41861696,169.98,169.88,12.28139368]
[1641248664782,12.41861696,169.98,169.88,10.8547]
[1641248665582,11.91861696,169.98,169.88,10.8547]
[1641248668591,3.09001696,169.98,169.88,12.28139368]
[1641248668989,2.83001696,169.98,169.88,12.28139368]
[1641248671492,3.09001696,169.98,169.88,12.28139368]
[1641248672292,3.09001696,169.98,169.88,12.02139368]
[1641248673494,3.09001696,169.98,169.88,12.28139368]
[1641248677321,2.83001696,169.98,169.88,12.28139368]
[1641248680622,2.83001696,169.98,169.93,8.8263]
[1641248680822,2.83001696,169.98,169.94,27.66992734]
[1641248681023,2.83001696,169.98,169.94,27.92992734]
[1641248681229,2.83001696,169.98,169.94,28.42992734]
[1641248681827,2.83001696,169.98,169.94,27.66992734]
[1641248682026,3.09001696,169.98,169.94,27.66992734]
[1641248685532,2.83001696,169.98,169.94,27.66992734]
[1641248685729,3.09001696,169.98,169.94,27.66992734]
[1641248685932,3.09001696,169.98,169.94,28.16992734]